lending/lending_fUSD_20251121
["ID","MTS","AMOUNT","RATE_DAILY","PERIOD"]
[394557422,1763706632084,-375.6439,0.0001683,2]
[394557423,1763706632094,-152.0,0.00016847,2]
[394557424,1763706632103,-286.45,0.00016851,2]
[394557425,1763706632115,-249.0,0.00016852,2]
[394557426,1763706632127,-243.0,0.00016854,2]
[394557427,1763706632136,-503.61817401,0.00016873,2]
[394557428,1763706632145,-500.0,0.00016873,2]
[394557429,1763706632155,-500.0,0.00016873,2]
[394557430,1763706632165,-222.0,0.00016873,2]
[394557431,1763706632174,-550.0,0.00016873,2]
[394557432,1763706632184,-394.0,0.0001688,2]
[394557433,1763706632196,-2500.0,0.00016882,2]
[394557435,1763706632205,-177.0,0.00016889,2]
[394557437,1763706632215,-1000.0,0.00016899,2]
[394557438,1763706632225,-477.88929844,0.00016899,2]
[394557439,1763706632236,-500.0,0.00016899,2]
[394557440,1763706632245,-524.85526623,0.00016899,2]
[394557441,1763706632254,-65937.37002809,0.000169,2]
[394557442,1763706632270,-1254.41808677,0.000169,2]
[394557443,1763706632287,-477.97880591,0.000169,2]
[394557444,1763706632314,-1895.5,0.000169,2]
[394557445,1763706632431,-860.0,0.000169,2]
[394557450,1763706637948,-86812.88327923,0.000169,2]
[394557451,1763706637958,-310.93,0.000169,2]
[394557452,1763706637967,-535.62,0.000169,2]
[394557453,1763706637977,-150.0,0.000169,2]
[394557454,1763706637986,-957.62,0.000169,2]
[394557455,1763706637996,-513.31249152,0.000169,2]
[394557456,1763706638005,-300.0,0.000169,2]
[394557457,1763706638014,-150.0,0.000169,2]
[394557458,1763706638023,-834.24,0.000169,2]
[394557459,1763706638033,-761.92,0.000169,2]
[394557460,1763706638042,-3813.57554697,0.000169,2]
[394557461,1763706638050,-150.72003984,0.000169,2]
[394557462,1763706638060,-2491.17037097,0.00016922,2]
[394557463,1763706638070,-150.25,0.00016925,2]
[394557464,1763706638079,-375.64391,0.0001695,2]
[394557465,1763706638088,-500.0,0.00016973,2]
[394557466,1763706638097,-500.0,0.00016973,2]
[394557467,1763706638106,-500.0,0.00016973,2]
[394557468,1763706638118,-500.0,0.00016973,2]
[394557470,1763706638127,-646.75971961,0.00016973,2]
[394557472,1763706638136,-502.06775106,0.00016973,2]
[394557474,1763706638145,-14330.6853367,0.00016982,2]
[394557475,1763706638155,-957.09,0.00016986,2]
[394557476,1763706638164,-11784.7,0.0001699,2]
[394557477,1763706638173,-11784.7,0.0001699,2]
[394557478,1763706638182,-163.75,0.0001699,2]
[394557479,1763706638192,-500.0,0.00016999,2]
[394557480,1763706638204,-192.92570184,0.00016999,2]
[394557481,1763706638213,-535.46566359,0.00016999,2]
[394557482,1763706638222,-500.0,0.00016999,2]
[394557483,1763706638231,-500.0,0.00016999,2]
[394557484,1763706638240,-203.22879476,0.00016999,2]
[394557485,1763706638249,-173.82056635,0.00016999,2]
[394557486,1763706638258,-179.56622194,0.00016999,2]
[394557487,1763706638267,-500.0,0.00016999,2]
[394557488,1763706638276,-407312.45763897,0.00017,2]
[394557489,1763706638285,-286.48833679,0.00017,2]
[394557490,1763706638294,-250.0,0.00017,2]
[394557491,1763706638303,-354.89,0.00017,2]
[394557492,1763706638313,-177.5,0.00017,2]
[394557493,1763706638321,-2000.0,0.00017,2]
[394557494,1763706638330,-1766489.37408871,0.00017,2]
[394557495,1763706638342,-257.6677078,0.00017,2]
[394557496,1763706638353,-630.42350612,0.00017,2]
[394557498,1763706639793,-304.07128278,0.00017,2]
[394557499,1763706639815,-2036032.38656729,0.00017,2]
[394557500,1763706639827,-500.0,0.00017,2]
[394557501,1763706639836,-3813.57554695,0.00017011,2]
[394557502,1763706639846,-168.0,0.00017036,2]
[394557503,1763706639856,-2542.0,0.00017041,2]
[394557504,1763706639866,-500.0,0.00017041,2]
[394557505,1763706639876,-500.0,0.00017041,2]
[394557506,1763706639885,-2491.17037097,0.00017044,2]
[394557507,1763706639895,-500.0,0.000171,2]
[394557508,1763706639905,-500.0,0.000171,2]
[394557509,1763706639915,-500.0,0.000171,2]
[394557510,1763706639925,-150.0,0.000171,2]
[394557511,1763706639936,-251.0458032,0.000171,2]
[394557512,1763706639945,-500.0,0.000171,2]
[394557513,1763706639957,-150.72003984,0.000171,2]
[394557514,1763706639967,-500.0,0.00017112,2]
[394557515,1763706639978,-168.75980871,0.00017112,2]
[394557516,1763706639987,-3813.57554695,0.00017122,2]
[394557517,1763706639997,-500.0,0.00017137,2]
[394557518,1763706640007,-150.0,0.00017166,2]
[394557519,1763706640017,-2491.17037097,0.00017167,2]
[394557520,1763706640027,-2542.0,0.00017178,2]
[394557521,1763706640037,-500.0,0.00017178,2]
[394557522,1763706640047,-500.0,0.00017178,2]
[394557523,1763706640056,-375.64391,0.0001721,2]
[394557524,1763706640067,-500.0,0.00017232,2]
[394557525,1763706640076,-3813.57554695,0.00017233,2]
[394557526,1763706640086,-500.0,0.00017237,2]
[394557527,1763706640096,-500.0,0.00017237,2]
[394557528,1763706640105,-500.0,0.00017237,2]
[394557529,1763706640116,-500.0,0.00017237,2]
[394557530,1763706640128,-567.45585131,0.00017249,2]
[394557531,1763706640139,-168.0,0.00017253,2]
[394557532,1763706640150,-150.0,0.0001726,2]
[394557533,1763706640161,-151.78,0.0001726,2]
[394557534,1763706640175,-150.0,0.0001726,2]
[394557535,1763706640185,-354.9,0.0001726,2]
[394557536,1763706640196,-339.2,0.0001726,2]
[394557538,1763706640208,-280.42,0.0001726,2]
[394557540,1763706640218,-181.23,0.0001726,2]
[394557542,1763706640228,-150.0,0.0001726,2]
[394557544,1763706640239,-169.6,0.0001726,2]
[394557546,1763706640248,-173.0,0.0001726,2]
[394557548,1763706640258,-417.12,0.0001726,2]
[394557549,1763706640268,-169.6,0.0001726,2]
[394557550,1763706640278,-1210.38,0.0001726,2]
[394557551,1763706640288,-417.12,0.0001726,2]
[394557552,1763706640298,-550.68,0.0001726,2]
[394557553,1763706640308,-417.12,0.0001726,2]
[394557554,1763706640319,-1210.38,0.0001726,2]
[394557555,1763706640329,-417.12,0.0001726,2]
[394557556,1763706640339,-169.6,0.0001726,2]
[394557557,1763706640349,-550.68,0.0001726,2]
[394557558,1763706640359,-1210.38,0.0001726,2]
[394557559,1763706640369,-167.79,0.0001726,2]
[394557560,1763706640379,-373.28,0.0001726,2]
[394557561,1763706640390,-550.68,0.0001726,2]
[394557562,1763706640400,-1210.38,0.0001726,2]
[394557563,1763706640410,-339.2,0.0001726,2]
[394557564,1763706640420,-177.5,0.0001726,2]
[394557565,1763706640430,-1210.38,0.0001726,2]
[394557566,1763706640440,-550.68,0.0001726,2]
[394557567,1763706640450,-169.6,0.0001726,2]
[394557568,1763706640462,-550.68,0.0001726,2]
[394557569,1763706640472,-177.5,0.0001726,2]
[394557570,1763706640481,-169.6,0.0001726,2]
[394557571,1763706640491,-550.68,0.0001726,2]
[394557572,1763706640501,-177.5,0.0001726,2]
[394557573,1763706640511,-169.6,0.0001726,2]
[394557574,1763706640521,-177.5,0.0001726,2]
[394557575,1763706640531,-177.5,0.0001726,2]
[394557576,1763706640541,-550.68,0.0001726,2]
[394557577,1763706640551,-548.67,0.0001726,2]
[394557578,1763706640561,-2414.28,0.0001726,2]
[394557579,1763706640570,-1210.38,0.0001726,2]
[394557580,1763706640580,-500.0,0.00017274,2]
[394557581,1763706640590,-2491.17037097,0.00017289,2]
[394557582,1763706640600,-150.72003984,0.000173,2]
[394557583,1763706640609,-150.0,0.00017303,2]
[394557584,1763706640619,-2542.0,0.00017315,2]
[394557585,1763706640629,-500.0,0.00017315,2]
[394557586,1763706640639,-500.0,0.00017315,2]
[394557587,1763706640648,-575.0,0.00017324,2]
[394557588,1763706640658,-1319.0,0.00017324,2]
[394557589,1763706640667,-3435.0,0.00017324,2]
[394557590,1763706640677,-609.0,0.00017324,2]
[394557591,1763706640687,-3813.57554695,0.00017344,2]
[394557592,1763706640697,-500.0,0.00017374,2]
[394557593,1763706640708,-500.0,0.00017374,2]
[394557594,1763706640718,-500.0,0.00017374,2]
[394557595,1763706640728,-500.0,0.00017374,2]
[394557596,1763706640738,-152.21780146,0.000174,2]
[394557597,1763706640748,-500.0,0.00017411,2]
[394557598,1763706640758,-2491.17037097,0.00017411,2]
[394557599,1763706640768,-203.97373392,0.0001744,2]
[394557600,1763706640778,-168.0,0.00017444,2]
[394557601,1763706640787,-375.64391,0.0001745,2]
[394557602,1763706640798,-2542.0,0.00017452,2]
[394557603,1763706640808,-500.0,0.00017452,2]
[394557604,1763706640818,-500.0,0.00017452,2]
[394557605,1763706641103,-3813.57554695,0.00017456,2]
[394557606,1763706641116,-168.0,0.0001748,2]
[394557607,1763706641127,-300.0,0.00017486,2]
[394557608,1763706641137,-168.0,0.00017498,2]
[394557609,1763706641147,-150.72003984,0.000175,2]
[394557610,1763706641159,-500.0,0.00017511,2]
[394557611,1763706641168,-500.0,0.00017511,2]
[394557612,1763706641179,-500.0,0.00017511,2]
[394557613,1763706641188,-500.0,0.00017511,2]
[394557614,1763706641200,-1601.0,0.00017516,2]
[394557615,1763706641212,-822.0,0.00017516,2]
[394557616,1763706641222,-1256.0,0.00017516,2]
[394557617,1763706641232,-783.0,0.00017516,2]
[394557618,1763706641241,-908.0,0.00017516,2]
[394557619,1763706641251,-1192.0,0.00017516,2]
[394557620,1763706641262,-290.41,0.00017516,2]
[394557621,1763706641271,-1000.0,0.00017521,2]
[394557622,1763706641281,-1000.0,0.00017521,2]
[394557623,1763706641291,-1000.0,0.00017521,2]
[394557624,1763706641301,-1000.0,0.00017521,2]
[394557625,1763706641310,-251.11772722,0.00017523,2]
[394557626,1763706641320,-2491.17037097,0.00017533,2]
[394557627,1763706641330,-500.0,0.00017548,2]
[394557628,1763706641340,-168.0,0.00017549,2]
[394557629,1763706641349,-1246.0,0.00017555,2]
[394557630,1763706641359,-151.0,0.00017555,2]
[394557631,1763706641369,-151.0,0.00017555,2]
[394557632,1763706641380,-151.0,0.00017555,2]
[394557633,1763706641389,-151.0,0.00017555,2]
[394557634,1763706641399,-151.0,0.00017555,2]
[394557635,1763706641409,-151.0,0.00017555,2]
[394557636,1763706641419,-151.0,0.00017555,2]
[394557637,1763706641429,-151.0,0.00017555,2]
[394557638,1763706641439,-151.0,0.00017555,2]
[394557639,1763706641449,-151.0,0.00017555,2]
[394557640,1763706641459,-164.78956349,0.00017555,2]
[394557641,1763706641469,-151.0,0.00017555,2]
[394557642,1763706641478,-1246.0,0.00017555,2]
[394557643,1763706641488,-151.0,0.00017555,2]
[394557644,1763706641498,-1246.0,0.00017555,2]
[394557645,1763706641508,-151.0,0.00017555,2]
[394557646,1763706641517,-1246.0,0.00017555,2]
[394557647,1763706641527,-152.0,0.00017555,2]
[394557648,1763706641537,-151.0,0.00017555,2]
[394557649,1763706641547,-1246.0,0.00017555,2]
[394557650,1763706641557,-152.0,0.00017555,2]
[394557651,1763706641566,-151.0,0.00017555,2]
[394557652,1763706641575,-152.0,0.00017555,2]
[394557653,1763706641585,-151.0,0.00017555,2]
[394557654,1763706641596,-1246.0,0.00017555,2]
[394557655,1763706641605,-1246.0,0.00017555,2]
[394557656,1763706641614,-151.0,0.00017555,2]
[394557657,1763706641624,-1246.0,0.00017555,2]
[394557658,1763706641634,-151.0,0.00017555,2]
[394557659,1763706641643,-1246.0,0.00017555,2]
[394557660,1763706641653,-151.0,0.00017555,2]
[394557661,1763706641663,-1246.0,0.00017555,2]
[394557662,1763706641673,-151.0,0.00017555,2]
[394557663,1763706641682,-1246.0,0.00017555,2]
[394557664,1763706641691,-151.0,0.00017555,2]
[394557665,1763706641701,-1303.03376724,0.00017555,2]
[394557666,1763706641712,-151.0,0.00017555,2]
[394557667,1763706641722,-151.0,0.00017555,2]
[394557668,1763706641731,-151.0,0.00017555,2]
[394557669,1763706641741,-151.0,0.00017555,2]
[394557670,1763706641750,-151.0,0.00017555,2]
[394557671,1763706641760,-151.0,0.00017555,2]
[394557672,1763706641770,-151.0,0.00017555,2]
[394557673,1763706641779,-151.0,0.00017555,2]
[394557674,1763706641790,-151.0,0.00017555,2]
[394557675,1763706641800,-5007.417,0.00017562,2]
[394557676,1763706641810,-159.368,0.00017562,2]
[394557677,1763706641820,-3813.57554695,0.00017567,2]
[394557678,1763706641830,-168.0,0.0001757,2]
[394557679,1763706641840,-168.0,0.00017585,2]
[394557680,1763706641850,-2542.0,0.00017589,2]
[394557681,1763706641859,-500.0,0.00017589,2]
[394557682,1763706641869,-500.0,0.00017589,2]
[394557683,1763706641879,-1246.0,0.000176,2]
[394557684,1763706641888,-168.0,0.00017603,2]
[394557685,1763706641897,-151.0,0.00017605,2]
[394557686,1763706641907,-151.0,0.00017605,2]
[394557687,1763706641917,-229.78882936,0.00017605,2]
[394557688,1763706641927,-151.0,0.00017605,2]
[394557689,1763706641936,-151.0,0.00017605,2]
[394557690,1763706641946,-151.0,0.00017605,2]
[394557691,1763706641955,-151.0,0.00017605,2]
[394557692,1763706641965,-151.0,0.00017605,2]
[394557693,1763706641975,-151.0,0.00017605,2]
[394557694,1763706641985,-151.0,0.00017605,2]
[394557695,1763706641994,-151.0,0.00017605,2]
[394557696,1763706642004,-151.0,0.00017605,2]
[394557697,1763706642014,-151.0,0.00017605,2]
[394557698,1763706642024,-151.0,0.00017605,2]
[394557699,1763706642033,-151.0,0.00017605,2]
[394557700,1763706642044,-151.0,0.00017605,2]
[394557701,1763706642054,-153.47257073,0.00017605,2]
[394557702,1763706642063,-151.0,0.00017605,2]
[394557703,1763706642073,-151.0,0.00017605,2]
[394557704,1763706642082,-166.0,0.00017605,2]
[394557705,1763706642092,-166.0,0.00017605,2]
[394557706,1763706642102,-166.0,0.00017605,2]
[394557707,1763706642112,-253.61607805,0.00017605,2]
[394557708,1763706642127,-166.0,0.00017605,2]
[394557709,1763706642142,-166.0,0.00017605,2]
[394557710,1763706642152,-425.0,0.00017645,2]
[394557711,1763706642162,-500.0,0.00017648,2]
[394557712,1763706642172,-533.82120881,0.00017648,2]
[394557713,1763706642182,-500.0,0.00017648,2]
[394557714,1763706642193,-500.0,0.00017648,2]
[394557715,1763706642204,-2491.17037097,0.00017656,2]
[394557716,1763706642213,-3813.57554695,0.00017678,2]
[394557717,1763706642223,-500.0,0.00017685,2]
[394557718,1763706642233,-300.0,0.00017687,2]
[394557719,1763706642243,-300.85,0.00017691,2]
[394557720,1763706642254,-300.0,0.00017692,2]
[394557721,1763706642264,-375.64391,0.000177,2]
[394557722,1763706642274,-150.72003984,0.000177,2]
[394557723,1763706642285,-300.0,0.00017702,2]
[394557724,1763706642295,-300.0,0.00017703,2]
[394557725,1763706642305,-300.0,0.00017703,2]
[394557726,1763706642315,-168.0,0.00017714,2]
[394557727,1763706642325,-286.45,0.00017716,2]
[394557728,1763706642335,-300.0,0.00017718,2]
[394557729,1763706642345,-2542.0,0.00017726,2]
[394557730,1763706642354,-500.0,0.00017726,2]
[394557731,1763706642364,-500.0,0.00017726,2]
[394557732,1763706642374,-300.0,0.00017726,2]
[394557733,1763706642384,-300.0,0.00017726,2]
[394557734,1763706642393,-300.0,0.00017728,2]
[394557735,1763706642403,-300.0,0.00017731,2]
[394557736,1763706642413,-300.0,0.00017735,2]
[394557737,1763706642422,-300.0,0.00017736,2]
[394557738,1763706642432,-300.0,0.00017736,2]
[394557739,1763706642441,-168.0,0.00017738,2]
[394557740,1763706642450,-300.0,0.00017739,2]
[394557741,1763706642461,-300.0,0.00017739,2]
[394557742,1763706642470,-300.0,0.0001774,2]
[394557743,1763706642480,-300.0,0.00017743,2]
[394557744,1763706642490,-957.93602807,0.00017744,2]
[394557745,1763706642499,-300.0,0.00017749,2]
[394557746,1763706642509,-300.0,0.00017749,2]
[394557747,1763706642518,-300.0,0.00017749,2]
[394557748,1763706642528,-301.82596373,0.00017749,2]
[394557749,1763706642538,-300.0,0.00017749,2]
[394557750,1763706642548,-250.0,0.00017749,2]
[394557751,1763706642557,-250.0,0.00017749,2]
[394557752,1763706642567,-300.0,0.0001775,2]
[394557753,1763706642578,-300.0,0.0001775,2]
[394557754,1763706642587,-300.0,0.00017753,2]
[394557755,1763706642597,-300.0,0.00017755,2]
[394557756,1763706642607,-300.0,0.00017756,2]
[394557757,1763706642617,-300.0,0.00017757,2]
[394557758,1763706642627,-300.0,0.00017762,2]
[394557759,1763706642637,-300.0,0.00017762,2]
[394557760,1763706642646,-300.0,0.00017762,2]
[394557761,1763706642655,-300.0,0.00017763,2]
[394557762,1763706642665,-300.0,0.00017763,2]
[394557763,1763706642675,-300.0,0.0001777,2]
[394557765,1763706642684,-2491.17037097,0.00017778,2]
[394557767,1763706642693,-168.0,0.00017778,2]
[394557768,1763706642702,-300.0,0.00017778,2]
[394557769,1763706642712,-300.0,0.00017778,2]
[394557770,1763706642721,-300.0,0.00017782,2]
[394557771,1763706642730,-300.0,0.00017784,2]
[394557772,1763706642740,-3115.0,0.00017785,2]
[394557773,1763706642749,-500.0,0.00017785,2]
[394557774,1763706642760,-500.0,0.00017785,2]
[394557775,1763706642769,-500.0,0.00017785,2]
[394557776,1763706642779,-300.0,0.00017785,2]
[394557777,1763706642788,-300.0,0.00017785,2]
[394557778,1763706642798,-300.0,0.00017786,2]
[394557779,1763706642807,-3813.57554695,0.00017789,2]
[394557780,1763706642816,-300.0,0.00017793,2]
[394557781,1763706642826,-300.0,0.00017797,2]
[394557782,1763706642835,-300.0,0.00017797,2]
[394557783,1763706642845,-300.0,0.000178,2]
[394557784,1763706642855,-500.0,0.00017808,2]
[394557785,1763706642864,-300.0,0.0001781,2]
[394557786,1763706642874,-300.0,0.00017816,2]
[394557787,1763706642884,-300.0,0.00017818,2]
[394557788,1763706642893,-300.0,0.00017819,2]
[394557789,1763706642903,-500.0,0.00017822,2]
[394557790,1763706642914,-300.0,0.00017824,2]
[394557791,1763706642924,-300.0,0.00017833,2]
[394557792,1763706642933,-300.0,0.00017835,2]
[394557793,1763706642943,-300.0,0.00017839,2]
[394557794,1763706642955,-300.0,0.0001784,2]
[394557795,1763706642964,-300.0,0.00017843,2]
[394557796,1763706642974,-300.0,0.00017843,2]
[394557797,1763706642983,-300.0,0.00017845,2]
[394557798,1763706642992,-300.0,0.00017847,2]
[394557799,1763706643002,-300.0,0.00017848,2]
[394557800,1763706643012,-300.0,0.00017853,2]
[394557801,1763706643021,-300.0,0.00017854,2]
[394557802,1763706643038,-300.0,0.00017855,2]
[394557803,1763706643048,-500.0,0.00017855,2]
[394557804,1763706643058,-200.0,0.00017855,2]
[394557805,1763706643068,-500.0,0.00017855,2]
[394557806,1763706643078,-500.0,0.00017855,2]
[394557807,1763706643089,-500.0,0.00017856,2]
[394557808,1763706643098,-500.0,0.00017856,2]
[394557809,1763706643108,-500.0,0.00017856,2]
[394557810,1763706643121,-500.0,0.00017856,2]
[394557811,1763706643130,-500.0,0.00017856,2]
[394557812,1763706643140,-500.0,0.00017856,2]
[394557813,1763706643149,-500.0,0.00017856,2]
[394557814,1763706643162,-500.0,0.00017856,2]
[394557815,1763706643172,-500.0,0.00017856,2]
[394557816,1763706643182,-500.0,0.00017856,2]
[394557817,1763706643194,-200.0,0.00017856,2]
[394557818,1763706643203,-300.0,0.00017856,2]
[394557819,1763706643214,-300.0,0.00017858,2]
[394557820,1763706643224,-2542.0,0.00017863,2]
[394557821,1763706643234,-500.0,0.00017863,2]
[394557822,1763706643244,-500.0,0.00017863,2]
[394557823,1763706643253,-168.0,0.00017863,2]
[394557824,1763706643262,-286.45,0.00017865,2]
[394557825,1763706643271,-300.0,0.00017866,2]
[394557826,1763706643281,-166.23,0.00017866,2]
[394557827,1763706643291,-300.0,0.00017871,2]
[394557828,1763706643300,-300.0,0.00017872,2]
[394557829,1763706643310,-300.0,0.00017873,2]
[394557830,1763706643319,-300.0,0.00017875,2]
[394557831,1763706643328,-300.0,0.00017876,2]
[394557832,1763706643337,-300.0,0.00017877,2]
[394557833,1763706643347,-300.0,0.00017877,2]
[394557834,1763706643357,-168.0,0.00017878,2]
[394557835,1763706643367,-300.0,0.0001788,2]
[394557836,1763706643377,-300.0,0.00017881,2]
[394557837,1763706643387,-300.0,0.00017885,2]
[394557838,1763706643396,-300.0,0.00017886,2]
[394557839,1763706643406,-300.0,0.00017892,2]
[394557840,1763706643416,-300.0,0.00017893,2]
[394557841,1763706643425,-300.0,0.00017895,2]
[394557842,1763706643435,-150.25,0.00017897,2]
[394557843,1763706643444,-152.21780146,0.000179,2]
[394557844,1763706643455,-2491.17037097,0.000179,2]
[394557845,1763706643466,-3813.57554695,0.000179,2]
[394557846,1763706643476,-150.72003984,0.000179,2]
[394557847,1763706643485,-300.0,0.00017902,2]
[394557848,1763706643495,-300.0,0.00017911,2]
[394557849,1763706643505,-300.0,0.00017916,2]
[394557850,1763706643515,-300.0,0.00017917,2]
[394557851,1763706643525,-300.0,0.00017917,2]
[394557852,1763706643535,-300.0,0.00017917,2]
[394557853,1763706643544,-300.0,0.00017918,2]
[394557854,1763706643553,-300.0,0.00017921,2]
[394557855,1763706643562,-500.0,0.00017922,2]
[394557856,1763706643572,-500.0,0.00017922,2]
[394557857,1763706643581,-500.0,0.00017922,2]
[394557858,1763706643591,-300.0,0.00017925,2]
[394557859,1763706643601,-300.0,0.00017926,2]
[394557860,1763706643611,-300.0,0.00017926,2]
[394557861,1763706643620,-300.0,0.0001793,2]
[394557862,1763706643632,-166.67,0.00017931,2]
[394557863,1763706643642,-300.0,0.00017933,2]
[394557864,1763706643652,-300.0,0.00017933,2]
[394557865,1763706643661,-300.0,0.00017935,2]
[394557866,1763706643671,-300.0,0.00017942,2]
[394557867,1763706643681,-500.0,0.00017945,2]
[394557868,1763706643691,-300.0,0.00017945,2]
[394557869,1763706643701,-478.87,0.00017945,2]
[394557870,1763706643713,-957.22,0.00017945,2]
[394557871,1763706643723,-957.22,0.00017945,2]
[394557872,1763706643733,-478.87,0.00017945,2]
[394557873,1763706643743,-957.62,0.00017945,2]
[394557874,1763706643752,-300.0,0.00017946,2]
[394557875,1763706643762,-300.0,0.00017947,2]
[394557876,1763706643772,-300.0,0.00017949,2]
[394557877,1763706643782,-375.6439,0.0001795,2]
[394557878,1763706643791,-300.0,0.00017953,2]
[394557879,1763706643800,-300.0,0.00017954,2]
[394557880,1763706643810,-300.0,0.00017958,2]
[394557881,1763706643819,-251.2780701,0.00017959,2]
[394557882,1763706643829,-300.0,0.00017959,2]
[394557883,1763706643839,-300.0,0.00017959,2]
[394557884,1763706643849,-300.0,0.00017961,2]
[394557885,1763706643858,-300.0,0.00017962,2]
[394557886,1763706643868,-420.0,0.00017964,2]
[394557887,1763706643878,-401.0,0.00017964,2]
[394557888,1763706643887,-300.0,0.00017965,2]
[394557889,1763706643897,-166.66,0.00017965,2]
[394557890,1763706643907,-300.0,0.00017966,2]
[394557891,1763706643916,-168.0,0.00017967,2]
[394557892,1763706644109,-168.0,0.00017971,2]
[394557893,1763706644124,-500.0,0.00017973,2]
[394557894,1763706644134,-500.0,0.00017973,2]
[394557895,1763706644144,-860.0,0.00017987,2]
[394557896,1763706644155,-300.0,0.00017999,2]
[394557897,1763706644164,-346.61892489,0.00017999,2]
[394557898,1763706644174,-1000.0,0.00017999,2]
[394557899,1763706644183,-2542.0,0.00018,2]
[394557900,1763706644194,-500.0,0.00018,2]
[394557901,1763706644205,-500.0,0.00018,2]
[394557902,1763706644221,-258.07122409,0.00018,2]
[394557903,1763706644239,-1023087.31413016,0.00018,2]
[394557904,1763706644249,-538406.21669026,0.00018,2]
[394557905,1763706645126,-1.7e-07,0.00017999,2]
[394557908,1763706649178,1404.28146717,0.00015,2]
[394557915,1763707336490,150.0,0.00016089,120]
[394557916,1763707545774,1600.0,0.00015997,2]
[394557926,1763707832140,-150.0,0.00016089,2]
[394557927,1763707832150,-1425.77,0.00016103,2]
[394557928,1763707832160,-1000.0,0.00016135,2]
[394557929,1763707832170,-150.0,0.000162,2]
[394557930,1763707832181,-150.0,0.000162,2]
[394557931,1763707832191,-395.45,0.00016708,2]
[394557932,1763707832200,-311.85,0.00016722,2]
[394557933,1763707832211,-300.0,0.00016797,2]
[394557934,1763707832222,-162.52786167,0.00016799,2]
[394557935,1763707832232,-1200.0,0.00016799,2]
[394557936,1763707832243,-1000.0,0.000168,2]
[394557937,1763707832253,-500.0,0.00016899,2]
[394557938,1763707832263,-300.0,0.00016899,2]
[394557939,1763707832273,-300.0,0.00016899,2]
[394557940,1763707832284,-4283.88793555,0.000169,2]
[394557941,1763707832301,-391.97033585,0.000169,2]
[394557942,1763707832311,-358.18,0.000169,2]
[394557943,1763707832321,-1210.38,0.000169,2]
[394557944,1763707832330,-417.12,0.000169,2]
[394557945,1763707832340,-212.0,0.00016904,2]
[394557946,1763707832354,-265.0,0.00016937,2]
[394557948,1763707832364,-500.0,0.00016972,2]
[394557950,1763707832374,-507.67202488,0.00016972,2]
[394557952,1763707832386,-631.13,0.00016972,2]
[394557954,1763707832396,-500.0,0.00016972,2]
[394557956,1763707832406,-500.0,0.00016973,2]
[394557958,1763707832417,-500.0,0.00016973,2]
[394557960,1763707832426,-550.0,0.00016984,2]
[394557962,1763707832437,-1918.912,0.00016985,2]
[394557966,1763707832447,-1000.0,0.00016985,2]
[394557969,1763707832456,-1000.0,0.00016985,2]